bitfinex-derivatives/quotes_BTCF0:USTF0_20250528
["timestamp","ask_amount","ask_price","bid_price","bid_amount"]
[1748476215052,0.51232039,107800.0,107790.0,2.90493512]
[1748476215348,0.32684599,107800.0,107790.0,2.93270885]
[1748476215744,0.32684599,107800.0,107790.0,2.92270885]
[1748476216249,0.32684599,107800.0,107790.0,2.94812537]
[1748476216549,1.19683354,107840.0,107790.0,2.94812537]
[1748476216550,0.37970147,107850.0,107790.0,2.23011547]
[1748476216747,0.2631598,107840.0,107830.0,0.67300788]
[1748476217054,0.2631598,107840.0,107830.0,0.78077768]
[1748476217055,0.7391076,107840.0,107830.0,0.78077768]
[1748476217251,0.7391076,107840.0,107830.0,0.89681868]
[1748476217446,0.7391076,107840.0,107830.0,0.81247768]
[1748476217842,0.6927537,107840.0,107830.0,0.74190287]
[1748476218048,0.6937537,107840.0,107830.0,0.82247768]
[1748476218351,0.6937537,107840.0,107830.0,0.81070217]
[1748476218556,0.57026517,107840.0,107830.0,0.81070217]
[1748476219751,0.57026517,107840.0,107830.0,0.7444749]
[1748476219943,0.60406517,107840.0,107830.0,0.7444749]
[1748476220144,0.60506517,107840.0,107830.0,0.7454749]
[1748476220359,0.7285537,107840.0,107830.0,0.7454749]
[1748476220654,0.7285537,107840.0,107830.0,0.64911781]
[1748476224158,0.60506517,107840.0,107830.0,0.64911781]
[1748476225159,0.60506517,107840.0,107830.0,0.65189781]
[1748476227563,0.60506517,107840.0,107830.0,0.69881477]
[1748476228159,0.60506517,107840.0,107830.0,0.71069711]
[1748476228758,0.63676517,107840.0,107830.0,0.71069711]
[1748476229363,0.63676517,107840.0,107830.0,0.71260711]
[1748476229561,0.63676517,107840.0,107830.0,0.65380781]
[1748476230362,0.63676517,107840.0,107830.0,0.75478243]
[1748476231467,1.0530337,107840.0,107830.0,0.0576372]
[1748476231658,1.4138337,107840.0,107830.0,0.09284856]
[1748476231852,1.8542337,107840.0,107830.0,0.0576372]
[1748476232163,0.1854228,107830.0,107820.0,0.04710506]
[1748476232357,0.84565133,107830.0,107820.0,0.04710506]
[1748476232556,0.84565133,107830.0,107820.0,0.04722506]
[1748476232858,0.84565133,107830.0,107820.0,0.04710506]
[1748476233057,0.84565133,107830.0,107820.0,0.04722506]
[1748476233461,0.84665133,107830.0,107820.0,0.04822506]
[1748476233666,1.20745133,107830.0,107820.0,0.04822506]
[1748476234853,1.25074876,107830.0,107820.0,0.00125886]
[1748476235255,1.25174876,107830.0,107820.0,0.00125886]
[1748476235453,1.28364876,107830.0,107820.0,0.00125886]
[1748476235667,1.28364876,107830.0,107820.0,0.04822506]
[1748476240059,1.40713729,107830.0,107820.0,0.04822506]
[1748476240260,1.40713729,107830.0,107820.0,0.00125886]
[1748476240464,1.40713729,107830.0,107820.0,0.00113886]
[1748476240465,1.51498216,107830.0,107820.0,0.00113886]
[1748476240666,1.51498216,107830.0,107820.0,0.00125886]
[1748476240971,1.83177363,107830.0,107820.0,0.04822506]
[1748476241673,1.95526216,107830.0,107820.0,0.04822506]
[1748476242966,1.91196473,107830.0,107820.0,0.04822506]
[1748476243273,1.95528804,107830.0,107820.0,0.04822506]
[1748476243462,2.04803205,107830.0,107820.0,0.04822506]
[1748476243664,2.04803205,107830.0,107820.0,0.00125886]
[1748476244068,2.04803205,107830.0,107820.0,0.04822506]
[1748476244476,2.04803205,107830.0,107820.0,0.00125886]
[1748476245169,1.86249205,107830.0,107820.0,0.00125886]
[1748476245471,2.04803205,107830.0,107820.0,0.00125886]
[1748476246577,1.95528804,107830.0,107820.0,0.00125886]
[1748476247281,1.91196473,107830.0,107820.0,0.00125886]
[1748476247662,1.9985534,107830.0,107820.0,0.00125886]
[1748476248662,1.5582734,107830.0,107820.0,0.00125886]
[1748476248869,2.01884473,107830.0,107820.0,0.00125886]
[1748476249970,2.01884473,107830.0,107820.0,0.00577441]
[1748476251076,2.1054334,107830.0,107820.0,0.00577441]
[1748476251577,2.1054334,107830.0,107820.0,1e-08]
[1748476256487,2.04758853,107830.0,107820.0,1e-08]
[1748476258772,0.1854404,107820.0,107810.0,0.0832462]
[1748476258977,2.0656868,107820.0,107810.0,0.08299797]
[1748476259286,1.7048468,107820.0,107810.0,0.08299797]
[1748476259987,1.7058468,107820.0,107810.0,0.08299797]
[1748476260287,0.9691765,107820.0,107810.0,0.44379797]
[1748476260484,0.800812,107820.0,107810.0,0.44379797]
[1748476260680,0.8586365,107820.0,107810.0,0.39708]
[1748476261291,0.8923365,107820.0,107810.0,0.39708]
[1748476261686,0.8586365,107820.0,107810.0,0.49879238]
[1748476261890,0.8596365,107820.0,107810.0,0.54323393]
[1748476262190,0.8596365,107820.0,107810.0,0.5994612]
[1748476262587,0.75842539,107820.0,107810.0,0.59946083]
[1748476262791,0.69486643,107820.0,107810.0,0.59946083]
[1748476263183,0.52793686,107820.0,107810.0,0.86925943]
[1748476264191,0.52793686,107820.0,107810.0,0.86229008]
[1748476265596,0.52793686,107820.0,107810.0,0.67683248]
[1748476265893,0.65142539,107820.0,107810.0,0.67683248]
[1748476266394,0.65142539,107820.0,107810.0,0.67405248]
[1748476267998,0.68292539,107820.0,107810.0,0.67417248]
[1748476268584,0.68292539,107820.0,107810.0,0.67695248]
[1748476269585,0.68292539,107820.0,107810.0,0.59261148]
[1748476270985,0.68292539,107820.0,107810.0,0.54960723]
[1748476271186,0.68292539,107820.0,107810.0,0.59253745]
[1748476271580,0.68292539,107820.0,107810.0,0.53357304]
[1748476271786,0.68292539,107820.0,107810.0,0.59244751]
[1748476271787,0.86846539,107820.0,107810.0,0.59244751]
[1748476271990,0.93566539,107820.0,107810.0,0.59244751]
[1748476272699,0.90246539,107820.0,107810.0,0.59244751]
[1748476272906,0.93566539,107820.0,107810.0,0.59232751]
[1748476273111,0.93566539,107820.0,107810.0,0.59244751]
[1748476274998,0.81217686,107820.0,107810.0,0.59244751]
[1748476275308,0.86846539,107820.0,107810.0,0.77790511]
[1748476275501,0.86846539,107820.0,107810.0,0.59244751]
[1748476276298,0.68292539,107820.0,107810.0,0.77790521]
[1748476276604,0.68292539,107820.0,107810.0,0.8404433]
[1748476277110,0.52793686,107820.0,107810.0,0.76044152]
[1748476277405,0.52793686,107820.0,107810.0,0.81930413]
[1748476277798,0.52793686,107820.0,107810.0,0.76044152]
[1748476278011,0.52793686,107820.0,107810.0,0.81930413]
[1748476279709,0.52793686,107820.0,107810.0,1.18010413]
[1748476281616,0.52793686,107820.0,107810.0,1.17732413]
[1748476282509,0.52793686,107820.0,107810.0,1.61692413]
[1748476283018,0.52793686,107820.0,107810.0,1.17732413]
[1748476283219,0.52793686,107820.0,107810.0,1.55802152]
[1748476283716,0.52793686,107820.0,107810.0,1.61688413]
[1748476283923,0.52793686,107820.0,107810.0,1.61966413]
[1748476284307,0.52793686,107820.0,107810.0,1.56080152]
[1748476284615,0.52793686,107820.0,107810.0,1.61966413]
[1748476286010,0.55963686,107820.0,107810.0,1.61966413]
[1748476286609,0.55963686,107820.0,107810.0,1.6742187]
[1748476286813,0.55963686,107820.0,107810.0,1.61799143]
[1748476288220,0.55963686,107820.0,107810.0,1.6179988]
[1748476288812,0.55963686,107820.0,107810.0,1.66901361]
[1748476289012,0.52793686,107820.0,107810.0,1.66901361]
[1748476289723,0.34249646,107820.0,107810.0,1.85273294]
[1748476290224,0.34249646,107820.0,107810.0,3.35273294]
[1748476291822,0.34249646,107820.0,107810.0,3.46545157]
[1748476292129,0.34249646,107820.0,107810.0,3.52464703]
[1748476292419,0.34249646,107820.0,107810.0,3.52465721]
[1748476292611,0.34249646,107820.0,107810.0,3.46544]
[1748476292811,0.34249646,107820.0,107810.0,3.52464443]
[1748476293421,0.34249646,107820.0,107810.0,3.77464443]
[1748476293922,0.34249646,107820.0,107810.0,3.63324914]
[1748476294927,0.34249646,107820.0,107810.0,3.50976061]
[1748476295221,0.34249646,107820.0,107810.0,3.63324914]
[1748476296529,0.34249646,107820.0,107810.0,3.63314713]
[1748476297211,0.34249646,107820.0,107810.0,3.19358713]
[1748476297423,0.34249646,107820.0,107810.0,3.73930713]
[1748476297625,0.34249646,107820.0,107810.0,2.7273466]
[1748476297826,0.37549646,107820.0,107810.0,3.39655513]
[1748476299321,0.37549646,107820.0,107810.0,3.25357243]
[1748476299715,0.37549646,107820.0,107810.0,3.36604413]
[1748476300721,0.37549646,107820.0,107810.0,3.366028]
[1748476302213,0.37549646,107820.0,107810.0,3.2535563]
[1748476302517,0.37549646,107820.0,107810.0,3.396539]
[1748476304818,0.37549646,107820.0,107810.0,3.53771146]
[1748476305126,0.37549646,107820.0,107810.0,3.41396789]
[1748476305326,0.37549646,107820.0,107810.0,3.53745642]
[1748476305515,0.37549646,107820.0,107810.0,3.53744806]
[1748476305922,0.37549646,107820.0,107810.0,3.53728806]
[1748476306315,0.37549646,107820.0,107810.0,3.39612396]
[1748476307128,0.56093706,107820.0,107810.0,1.22707543]
[1748476307317,0.71562559,107820.0,107810.0,1.14008841]
[1748476307626,0.71562559,107820.0,107810.0,3.19297525]
[1748476307627,0.40669646,107820.0,107810.0,3.19297525]
[1748476307820,0.40669646,107820.0,107810.0,3.25677525]
[1748476311328,0.37549646,107820.0,107810.0,3.25677525]
[1748476311724,0.37549646,107820.0,107810.0,3.39975795]
[1748476312529,0.37549646,107820.0,107810.0,3.2872566]
[1748476313522,0.37549646,107820.0,107810.0,3.28950006]
[1748476313725,0.37549646,107820.0,107810.0,3.37169092]
[1748476313926,0.37549646,107820.0,107810.0,3.43248813]
[1748476314830,0.37549646,107820.0,107810.0,3.43236813]
[1748476318325,0.37549646,107820.0,107810.0,3.28977044]
[1748476318527,0.37549646,107820.0,107810.0,1.22693153]
[1748476318733,0.37549646,107820.0,107810.0,1.78973044]
[1748476318734,0.49937537,107820.0,107810.0,1.78973044]
[1748476318927,0.53147537,107820.0,107810.0,1.52274883]
[1748476319130,0.53147537,107820.0,107810.0,1.64674774]
[1748476319535,0.53147537,107820.0,107810.0,1.78973044]
[1748476320037,0.53147537,107820.0,107810.0,1.57290774]
[1748476320435,0.53147537,107820.0,107810.0,1.68467558]
[1748476320631,0.53147537,107820.0,107810.0,1.57290774]
[1748476320935,0.53147537,107820.0,107810.0,1.68480375]
[1748476321136,0.90245607,107820.0,107810.0,1.13402774]
[1748476321323,1.02633498,107820.0,107810.0,1.57952195]
[1748476321529,0.90245607,107820.0,107810.0,1.70340086]
[1748476321726,0.71701537,107820.0,107810.0,1.70340086]
[1748476321940,0.90245607,107820.0,107810.0,1.70340086]
[1748476322131,0.90245607,107820.0,107810.0,1.70352086]
[1748476322432,0.90245607,107820.0,107810.0,1.63277692]
[1748476322636,0.90245607,107820.0,107810.0,1.63273692]
[1748476322832,0.90245607,107820.0,107810.0,1.70348086]
[1748476324039,0.90245607,107820.0,107810.0,1.14076195]
[1748476324040,0.77857716,107820.0,107810.0,1.14076195]
[1748476324229,0.77857716,107820.0,107810.0,1.57960195]
[1748476324425,0.77857716,107820.0,107810.0,1.63168111]
[1748476324629,0.77857716,107820.0,107810.0,3.07960195]
[1748476324830,0.77857716,107820.0,107810.0,3.07964553]
[1748476326840,0.77857716,107820.0,107810.0,3.13158527]
[1748476328034,0.59303716,107820.0,107810.0,2.69274527]
[1748476328231,0.77857716,107820.0,107810.0,3.13150527]
[1748476328542,0.40759646,107820.0,107810.0,3.1945605]
[1748476328725,0.40759646,107820.0,107810.0,3.2883805]
[1748476328927,0.40759646,107820.0,107810.0,3.2880053]
[1748476329150,0.40759646,107820.0,107810.0,3.31909162]
[1748476329333,0.40759646,107820.0,107810.0,3.17610892]
[1748476329933,0.37549646,107820.0,107810.0,3.17610892]
[1748476330133,0.37549646,107820.0,107810.0,3.31909162]
[1748476330337,0.37549646,107820.0,107810.0,3.19517245]
[1748476330535,0.37549646,107820.0,107810.0,3.31909162]
[1748476330536,0.40849646,107820.0,107810.0,3.31909162]
[1748476333138,0.40849646,107820.0,107810.0,3.28800031]
[1748476333339,0.40849646,107820.0,107810.0,3.16408114]
[1748476333646,0.40849646,107820.0,107810.0,3.28800031]
[1748476334350,0.59393716,107820.0,107810.0,3.16408114]
[1748476334536,0.40849646,107820.0,107810.0,3.28800031]
[1748476337438,0.40849646,107820.0,107810.0,3.28803426]
[1748476338348,0.59393716,107820.0,107810.0,3.28791426]
[1748476338545,0.59393716,107820.0,107810.0,3.18277233]
[1748476338742,0.59393716,107820.0,107810.0,3.18289233]
[1748476339344,0.59393716,107820.0,107810.0,3.18285233]
[1748476339648,0.59393716,107820.0,107810.0,3.1639538]
[1748476341742,0.59393716,107820.0,107810.0,3.16395513]
[1748476344335,0.77947716,107820.0,107810.0,3.16395513]
[1748476344539,0.77947716,107820.0,107810.0,3.15395513]
[1748476344841,0.59403646,107820.0,107810.0,3.15395513]
[1748476345042,0.59403646,107820.0,107810.0,3.2778743]
[1748476345958,0.56103646,107820.0,107810.0,3.27784694]
[1748476346152,0.56103646,107820.0,107810.0,3.27759268]
[1748476348545,0.56103646,107820.0,107810.0,3.16570129]
[1748476349254,0.34249646,107820.0,107810.0,3.4525758]
[1748476349454,0.34249646,107820.0,107810.0,1.82868399]
[1748476349942,0.37329646,107820.0,107810.0,1.82868399]
[1748476350255,0.37329646,107820.0,107810.0,1.82869251]
[1748476350851,0.37329646,107820.0,107810.0,1.24710981]
[1748476351052,0.37329646,107820.0,107810.0,1.68554981]
[1748476353060,0.37329646,107820.0,107810.0,1.24710981]
[1748476353248,0.37329646,107820.0,107810.0,1.79742823]
[1748476353445,0.86816897,107820.0,107810.0,1.77742823]
[1748476353751,0.93186897,107820.0,107810.0,1.33902823]
[1748476353957,0.93186897,107820.0,107810.0,1.77730823]
[1748476354157,0.93186897,107820.0,107810.0,1.77742823]
[1748476354854,0.93186897,107820.0,107810.0,1.05582823]
[1748476355054,0.93186897,107820.0,107810.0,1.77742823]
[1748476356366,0.93186897,107820.0,107810.0,1.30882823]
[1748476356552,0.93186897,107820.0,107810.0,1.18493642]
[1748476356747,0.93186897,107820.0,107810.0,1.74714823]
[1748476356955,0.93186897,107820.0,107810.0,1.74702823]
[1748476357154,0.93186897,107820.0,107810.0,1.74719707]
[1748476358752,0.93186897,107820.0,107810.0,1.74694425]
[1748476359165,0.93186897,107820.0,107810.0,1.68340425]
[1748476359355,0.93186897,107820.0,107810.0,1.68328425]
[1748476359666,0.93186897,107820.0,107810.0,1.12111244]
[1748476359960,0.93186897,107820.0,107810.0,1.55939244]
[1748476360159,0.93186897,107820.0,107810.0,1.55951244]
[1748476360359,1.05576078,107820.0,107810.0,1.55951244]
[1748476360663,0.93186897,107820.0,107810.0,1.55951244]
[1748476361358,1.05576078,107820.0,107810.0,1.55951244]
[1748476361765,0.93186897,107820.0,107810.0,1.55951244]
[1748476362163,1.05576078,107820.0,107810.0,1.12123244]
[1748476362356,1.05576078,107820.0,107810.0,1.47987404]
[1748476362662,1.05576078,107820.0,107810.0,1.47999404]
[1748476364464,1.05576078,107820.0,107810.0,0.73991039]
[1748476364663,1.09922633,107820.0,107810.0,1.23413386]
[1748476364966,1.05576078,107820.0,107810.0,1.23409386]
[1748476365165,0.87022078,107820.0,107810.0,1.23409386]
[1748476365361,1.05576078,107820.0,107810.0,1.23409386]
[1748476366680,1.79406254,107820.0,107800.0,0.19894151]
[1748476366867,0.68058152,107810.0,107800.0,0.53084201]
[1748476367065,0.97040349,107810.0,107800.0,0.46018429]
[1748476367267,0.92693794,107810.0,107800.0,0.53042462]
[1748476367563,0.92693794,107810.0,107800.0,0.4596469]
[1748476368063,0.92693794,107810.0,107800.0,0.4616469]
[1748476368672,0.92693794,107810.0,107800.0,0.647122]
[1748476369164,0.92793794,107810.0,107800.0,0.651122]
[1748476369371,1.05182975,107810.0,107800.0,0.651122]
[1748476369578,1.05182975,107810.0,107800.0,0.65563755]
[1748476369761,0.92793794,107810.0,107800.0,0.65363755]
[1748476369961,0.92793794,107810.0,107800.0,0.65563755]
[1748476369962,0.9290141,107810.0,107800.0,0.65563755]
[1748476371074,0.9290141,107810.0,107800.0,0.82471527]
[1748476371669,0.9290141,107810.0,107800.0,0.75393755]
[1748476371872,0.9290141,107810.0,107800.0,0.72123755]
[1748476372073,0.9290141,107810.0,107800.0,0.66526119]
[1748476372477,1.0349741,107810.0,107800.0,0.66526119]
[1748476374183,1.0349741,107810.0,107800.0,0.62251065]
[1748476377781,1.0349741,107810.0,107800.0,0.58931065]
[1748476378978,0.91100613,107810.0,107800.0,0.58931065]
[1748476379182,1.0349741,107810.0,107800.0,0.58931065]
[1748476380982,1.0349741,107810.0,107800.0,0.62021065]
[1748476381184,0.9290141,107810.0,107800.0,0.62021065]
[1748476381486,1.0349741,107810.0,107800.0,0.62021065]
[1748476381982,0.91100613,107810.0,107800.0,0.62021065]
[1748476382283,1.0349741,107810.0,107800.0,0.7334328]
[1748476382783,0.91100613,107810.0,107800.0,0.73343732]
[1748476382979,1.0349741,107810.0,107800.0,0.73343732]
[1748476384269,0.8987141,107810.0,107800.0,0.66266135]
[1748476384669,0.8987141,107810.0,107800.0,0.74667461]
[1748476385277,0.77474613,107810.0,107800.0,0.74667461]
[1748476385485,0.8987141,107810.0,107800.0,0.74667461]
[1748476386681,0.8987141,107810.0,107800.0,0.81745233]
[1748476387076,0.8987141,107810.0,107800.0,0.81766325]
[1748476387683,0.8987141,107810.0,107800.0,0.74688553]
[1748476389089,0.8987141,107810.0,107800.0,1.18484553]
[1748476389884,0.58920613,107810.0,107800.0,1.30875474]
[1748476390187,0.37224823,107810.0,107800.0,1.35861069]
[1748476390386,0.55770543,107810.0,107800.0,1.35861069]
[1748476390586,0.37224823,107810.0,107800.0,1.35861069]
[1748476391090,0.37249646,107810.0,107800.0,1.3586259]
[1748476391683,0.37249646,107810.0,107800.0,1.52142158]
[1748476393888,0.37249646,107810.0,107800.0,1.39749862]
[1748476394388,0.37249646,107810.0,107800.0,1.27360316]
[1748476394589,0.37249646,107810.0,107800.0,1.39749862]
[1748476395186,0.37249646,107810.0,107800.0,1.42909862]
[1748476395392,0.37249646,107810.0,107800.0,1.42906311]
[1748476397499,0.37249646,107810.0,107800.0,2.00111628]
[1748476397797,0.37249646,107810.0,107800.0,2.18499001]
[1748476397998,0.37249646,107810.0,107800.0,3.68499001]
[1748476398387,0.37249646,107810.0,107800.0,3.68515618]
[1748476399299,0.37249646,107810.0,107800.0,3.43515618]
[1748476399689,0.37249646,107810.0,107800.0,3.57435738]
[1748476399889,0.37249646,107810.0,107800.0,3.39048365]
[1748476400996,0.37249646,107810.0,107800.0,3.39326365]
[1748476401393,0.37249646,107810.0,107800.0,3.3342987]
[1748476403085,0.37249646,107810.0,107800.0,1.8342987]
[1748476403602,0.37249646,107810.0,107800.0,3.25194167]
[1748476404102,0.37249646,107810.0,107800.0,2.81402167]
[1748476404396,0.37249646,107810.0,107800.0,3.25170167]
[1748476407292,0.37249646,107810.0,107800.0,3.11231922]
[1748476407898,0.37249646,107810.0,107800.0,3.11225123]
[1748476408103,0.37249646,107810.0,107800.0,3.25163368]
[1748476408593,0.37249646,107810.0,107800.0,1.09729822]
[1748476408794,0.40569646,107810.0,107800.0,1.54618549]
[1748476409002,0.40569646,107810.0,107800.0,3.04618549]
[1748476409003,0.46709646,107810.0,107800.0,3.04618549]
[1748476409196,0.46709646,107810.0,107800.0,3.04630549]
[1748476410394,0.46709646,107810.0,107800.0,2.60874549]
[1748476410595,0.46709646,107810.0,107800.0,3.04630549]
[1748476411596,0.46709646,107810.0,107800.0,3.05630549]
[1748476412096,0.46709646,107810.0,107800.0,3.05620018]
[1748476412501,0.46709646,107810.0,107800.0,3.06421335]
[1748476416804,0.40569646,107810.0,107800.0,3.06421335]
[1748476417111,0.40569646,107810.0,107800.0,3.26540678]
[1748476417898,0.46869646,107810.0,107800.0,3.26528678]
[1748476418204,0.46869646,107810.0,107800.0,3.12409335]
[1748476418400,0.46869646,107810.0,107800.0,3.12397335]
[1748476418709,0.46869646,107810.0,107800.0,3.12409335]
[1748476419516,0.46869646,107810.0,107800.0,3.00019789]
[1748476419717,0.46869646,107810.0,107800.0,3.12409335]
[1748476420703,0.46869646,107810.0,107800.0,3.12427644]
[1748476422109,0.46869646,107810.0,107800.0,3.00038098]
[1748476422304,0.46869646,107810.0,107800.0,3.12427644]
[1748476422506,0.46869646,107810.0,107800.0,3.09267644]
[1748476423704,0.46869646,107810.0,107800.0,3.45347644]
[1748476424415,0.46869646,107810.0,107800.0,3.48677644]
[1748476424614,0.46869646,107810.0,107800.0,3.36288098]
[1748476424814,0.46869646,107810.0,107800.0,3.48677644]
[1748476425013,0.46869646,107810.0,107800.0,3.48403446]
[1748476426119,0.46869646,107810.0,107800.0,3.360139]
[1748476426414,0.65423646,107810.0,107800.0,3.48403446]
[1748476427115,0.65423646,107810.0,107800.0,3.48681446]
[1748476427319,0.62223646,107810.0,107800.0,3.48681446]
[1748476429121,0.62223646,107810.0,107800.0,3.48686167]
[1748476430617,0.62223646,107810.0,107800.0,3.5692187]
[1748476430921,0.62223646,107810.0,107800.0,3.6281467]
[1748476431421,0.62223646,107810.0,107800.0,3.50425124]
[1748476431610,0.62223646,107810.0,107800.0,3.6281467]
[1748476431807,0.62223646,107810.0,107800.0,3.44532324]
[1748476432010,0.62223646,107810.0,107800.0,3.62815232]
[1748476432225,0.65263646,107810.0,107800.0,3.56395232]
[1748476433222,0.65263646,107810.0,107800.0,3.59655232]
[1748476433415,0.65263646,107810.0,107800.0,3.5965174]
[1748476433717,0.65263646,107810.0,107800.0,3.6274174]
[1748476435615,0.65263646,107810.0,107800.0,3.67190868]
[1748476435914,0.65263646,107810.0,107800.0,3.62782194]
[1748476436115,0.65263646,107810.0,107800.0,3.62762194]
[1748476436322,0.65263646,107810.0,107800.0,3.48633334]
[1748476437217,0.65263646,107810.0,107800.0,3.48629334]
[1748476437720,0.65263646,107810.0,107800.0,3.4863119]
[1748476438115,0.65263646,107810.0,107800.0,3.4554119]
[1748476438316,0.83809496,107810.0,107800.0,2.89431644]
[1748476438621,0.83809496,107810.0,107800.0,3.33151644]
[1748476438923,0.65263646,107810.0,107800.0,3.33139644]
[1748476439113,0.65263646,107810.0,107800.0,3.33151644]
[1748476439314,0.65263646,107810.0,107800.0,3.36171644]
[1748476439517,0.65263646,107810.0,107800.0,3.4856119]
[1748476441024,0.65263646,107810.0,107800.0,3.48561301]
[1748476441220,0.65263646,107810.0,107800.0,2.92451755]
[1748476441429,0.65263646,107810.0,107800.0,3.48557301]
[1748476441919,0.65263646,107810.0,107800.0,3.62687402]
[1748476443221,0.65263646,107810.0,107800.0,3.48557301]
[1748476444723,0.65263646,107810.0,107800.0,3.48534043]
[1748476445225,0.65263646,107810.0,107800.0,3.56769746]
[1748476445926,0.65263646,107810.0,107800.0,3.56772678]
[1748476448424,0.65263646,107810.0,107800.0,3.13056678]
[1748476448614,0.65263646,107810.0,107800.0,3.34550276]
[1748476450028,0.77656124,107810.0,107800.0,3.34550276]
[1748476451434,0.96201974,107810.0,107800.0,3.34550276]
[1748476451619,0.77656124,107810.0,107800.0,3.47750216]
[1748476452029,0.96201964,107810.0,107800.0,3.47750216]
[1748476452427,0.96201964,107810.0,107800.0,3.37182216]
[1748476452624,0.96201964,107810.0,107800.0,3.13602954]
[1748476452823,0.96201964,107810.0,107800.0,1.67264595]
[1748476453027,0.96201964,107810.0,107800.0,1.67276595]
[1748476453227,0.96201964,107810.0,107800.0,1.59040892]
[1748476453426,0.96201964,107810.0,107800.0,3.12280892]
[1748476453625,0.96201964,107810.0,107800.0,3.2467337]
[1748476454628,0.96201964,107810.0,107800.0,3.2791337]
[1748476454831,0.65263646,107810.0,107800.0,3.2791337]
[1748476455030,0.65263646,107810.0,107800.0,3.3119337]
[1748476455638,0.65263646,107810.0,107800.0,3.30411624]
[1748476455835,0.62223646,107810.0,107800.0,3.30411624]
[1748476456043,0.62223646,107810.0,107800.0,3.42804102]
[1748476456340,0.62223646,107810.0,107800.0,3.30411624]
[1748476457234,0.93161944,107810.0,107800.0,3.30407624]
[1748476457542,0.96241944,107810.0,107800.0,3.30407017]
[1748476457729,0.77696124,107810.0,107800.0,3.30407017]
[1748476457930,0.65303646,107810.0,107800.0,3.18014539]
[1748476458435,0.65303646,107810.0,107800.0,3.30407563]
[1748476458636,0.62223646,107810.0,107800.0,3.31407563]
[1748476458835,0.59123646,107810.0,107800.0,3.31407563]
[1748476460235,0.59123646,107810.0,107800.0,3.46302888]
[1748476460634,0.59123646,107810.0,107800.0,3.32324189]
[1748476460839,0.59123646,107810.0,107800.0,3.50711562]
[1748476461245,0.59123646,107810.0,107800.0,3.38318538]
[1748476461442,0.59123646,107810.0,107800.0,3.50576934]
[1748476461748,0.59123646,107810.0,107800.0,3.32189561]
[1748476462045,0.55803646,107810.0,107800.0,3.32189561]
[1748476462241,0.55803646,107810.0,107800.0,3.42189561]
[1748476462242,0.37249646,107810.0,107800.0,3.42189561]
[1748476462631,0.37249646,107810.0,107800.0,1.92189561]
[1748476462836,0.37249646,107810.0,107800.0,1.84087171]
[1748476463143,0.37249646,107810.0,107800.0,3.52474544]
[1748476463342,0.37249646,107810.0,107800.0,3.61867785]
[1748476463849,0.37249646,107810.0,107800.0,3.62867785]
[1748476464345,0.37249646,107810.0,107800.0,3.61724483]
[1748476464545,0.37249646,107810.0,107800.0,3.50473307]
[1748476464737,0.37249646,107810.0,107800.0,3.62866331]
[1748476465448,0.37249646,107810.0,107800.0,3.5247309]
[1748476465748,0.37249646,107810.0,107800.0,3.52646777]
[1748476467041,0.37249646,107810.0,107800.0,3.62040018]
[1748476467441,0.37249646,107810.0,107800.0,3.52646777]
[1748476468144,0.37249646,107810.0,107800.0,3.54027894]
[1748476468343,0.37249646,107810.0,107800.0,3.63421135]
[1748476468647,0.37249646,107810.0,107800.0,3.54027894]
[1748476469550,0.37249646,107810.0,107800.0,3.62275349]
[1748476469842,0.37249646,107810.0,107800.0,3.62259349]
[1748476470057,0.37249646,107810.0,107800.0,3.62256408]
[1748476470241,0.37249646,107810.0,107800.0,3.18576408]
[1748476470433,0.37249646,107810.0,107800.0,3.17195291]
[1748476470837,0.62183646,107810.0,107800.0,3.71160468]
[1748476471043,0.65333646,107810.0,107800.0,2.16977219]
[1748476471237,0.65333646,107810.0,107800.0,2.02785095]
[1748476471648,0.65333646,107810.0,107800.0,3.52785095]
[1748476472645,0.65333646,107810.0,107800.0,3.52787354]
[1748476475051,0.65333646,107810.0,107800.0,3.38818791]
[1748476478446,0.65333646,107810.0,107800.0,3.38818559]
[1748476479344,0.58923646,107810.0,107800.0,3.38818559]
[1748476480650,0.58923646,107810.0,107800.0,3.26425535]
[1748476480850,0.58923646,107810.0,107800.0,3.38818559]
[1748476481757,0.58923646,107810.0,107800.0,3.52787122]
[1748476482349,0.43499646,107810.0,107800.0,3.52787122]
[1748476482551,0.33655846,107810.0,107800.0,2.08731708]
[1748476482755,0.33655846,107810.0,107800.0,2.17979163]
[1748476482953,0.33655846,107810.0,107800.0,3.72397973]
[1748476483351,0.33655846,107810.0,107800.0,3.64150518]
[1748476483560,0.33655846,107810.0,107800.0,3.72397576]
[1748476483857,0.33655846,107810.0,107800.0,3.723979]
[1748476485443,0.33655846,107810.0,107800.0,3.59004876]
[1748476485755,0.33655846,107810.0,107800.0,3.713979]
[1748476485951,0.33655846,107810.0,107800.0,3.171979]
[1748476486157,0.36745846,107810.0,107800.0,3.713619]
[1748476486954,0.36745846,107810.0,107800.0,3.7135234]
[1748476487957,0.39965846,107810.0,107800.0,3.7135234]
[1748476488159,0.39965846,107810.0,107800.0,3.65411071]
[1748476488349,0.39965846,107810.0,107800.0,3.71341485]
[1748476489359,0.39965846,107810.0,107800.0,3.71353485]
[1748476490063,0.39965846,107810.0,107800.0,3.65411071]
[1748476490456,0.06559646,107810.0,107800.0,3.57163689]
[1748476490768,0.06559646,107810.0,107800.0,3.38776316]
[1748476491566,0.06559646,107810.0,107800.0,3.57163689]
[1748476491864,0.06559646,107810.0,107800.0,3.71354739]
[1748476493460,0.06559646,107810.0,107800.0,3.71110464]
[1748476493666,0.06559646,107810.0,107800.0,3.52723091]
[1748476494166,0.06559646,107810.0,107800.0,3.52715091]
[1748476495562,0.06559646,107810.0,107800.0,3.52719415]
[1748476497466,0.06559646,107810.0,107800.0,3.47599898]
[1748476497668,0.06559646,107810.0,107800.0,3.52720183]
[1748476503567,0.06559646,107810.0,107800.0,3.38773408]
[1748476503771,0.06559646,107810.0,107800.0,3.57160781]
[1748476504273,0.25113646,107810.0,107800.0,3.57160781]
[1748476505266,0.25113646,107810.0,107800.0,3.71353906]
[1748476506077,0.25113646,107810.0,107800.0,3.83739816]
[1748476506870,0.25113646,107810.0,107800.0,3.83744859]
[1748476507374,0.25113646,107810.0,107800.0,3.75497477]
[1748476510764,0.25113646,107810.0,107800.0,3.84890718]
[1748476511175,0.25113646,107810.0,107800.0,3.75497477]
[1748476511568,0.25113646,107810.0,107800.0,3.84890718]
[1748476512274,0.25113646,107810.0,107800.0,3.75497477]
[1748476512660,0.25113646,107810.0,107800.0,3.60111784]
[1748476512866,0.25113646,107810.0,107800.0,3.84890718]
[1748476515475,0.03,107820.0,107810.0,0.1854587]
[1748476515771,0.21554,107820.0,107810.0,1.18249386]
[1748476516786,0.21554,107820.0,107810.0,1.09986027]
[1748476517369,0.21554,107820.0,107810.0,1.10086027]
[1748476517765,0.21554,107820.0,107810.0,1.10564027]
[1748476518678,0.24614,107820.0,107810.0,1.10564027]
[1748476519767,0.24614,107820.0,107810.0,1.10560347]
[1748476520767,0.24614,107820.0,107810.0,1.11011902]
[1748476520970,0.21614,107820.0,107810.0,1.47038399]
[1748476521181,0.21614,107820.0,107810.0,1.56032531]
[1748476521471,0.12389467,107860.0,107850.0,0.1853747]
[1748476521685,0.12389467,107860.0,107850.0,1.25074397]